Workbook

Sheet 例題12a 蒸留塔微分モデル
A1: 微分方程式数 | B1: 2 | E1: F= | F1: 250 | G1: L=DR | H1: =F8*F2 -> 134 | I1: L'=L+qF= | J1: =H1+F5*F1 -> 384 | T1: x | U1: α= | V1: ｙ*
A2: z= | B2: yR= | C2: yS= | E2: D= | F2: 134 | G2: V=L+D | H2: =H1+F2 -> 268 | I2: V'=L+qF-W= | J2: =H1+F5*F1-F3 -> 268 | T2: 0 | U2: =3.765*T2^2-8.6392*T2+5.3118 -> 5.3118 | V2: =U2*T2/(1+(U2-1)*T2) -> 0
A3: 2 | B3: 0.732544863 | C3: -0.02965801867 | E3: W= | F3: 116 | G3: yq= | H3: =((F2/H1)*F6+(F3/J1)*F7)/((H1+F2)/H1-J2/J1) -> 0.5492 | T3: 0.05 | U3: 4.8892525 | V3: 0.2046632686
B4: yR'= | C4: yS' | E4: zF= | F4: 0.4 | G4: xq= | H4: =((H1+F2)/H1)*H3-(F2/H1)*F6 -> 0.3984 | T4: 0.1 | U4: 4.48553 | V4: 0.3326179987
A5: 微分方程式→ | B5: =(H5/H2)*(H7-B3) -> 0.03875460795 | C5: =-(H5/J2)*(J7-C3) -> 0.002923264476 | E5: q= | F5: 1 | G5: Kya= | H5: 725 | T5: 0.15 | U5: 4.1006325 | V5: 0.4198327941
E6: xD= | F6: 0.7 | G6: xR= | H6: =(H1+F2)*B3/H1-(F2/H1)*F6 -> 0.7650897261 | I6: xS= | J6: =(J2/J1)*C3+(F3/J1)*F7 -> -0.005594658864 | T6: 0.2 | U6: 3.73456 | V6: 0.4828406529
A7: 積分区間z=[a, | B7: 0 | E7: xW= | F7: 0.05 | G7: yR*= | H7: =H8*H6/(1+(H8-1)*H6) -> 0.7468707043 | I7: yS*= | J7: =J8*J6/(1+(J8-1)*J6) -> -0.0307386185 | T7: 0.25 | U7: 3.3873125 | V7: 0.5303188939
A8: b] | B8: 2 | E8: R= | F8: 1 | G8: αR= | H8: =3.765*H6^2-8.6392*H6+5.3118 -> 0.9059258563 | I8: αS= | J8: =3.765*J6^2-8.6392*J6+5.3118 -> 5.360251222 | T8: 0.3 | U8: 3.05889 | V8: 0.5672780616
A9: 積分刻み幅Δz | B9: 0.2 | T9: 0.35 | U9: 2.7492925 | V9: 0.5968373128
A10: 計算結果 | P10: =B24 -> 0 | Q10: =C24 -> 0 | T10: 0.4 | U10: 2.45852 | V10: 0.6210705011
A11: z | B11: yR | C11: yS | D11: xR | E11: αR | F11: yR* | G11: xS | H11: αS | I11: yS* | J11: zS | P11: 1 | Q11: 1 | T11: 0.45 | U11: 2.1865725 | V11: 0.6414503302
A12: 0 | B12: =H3 -> 0.5492 | C12: =H3 -> 0.5492 | D12: =($H$1+$F$2)*B12/$H$1-($F$2/$H$1)*$F$6 -> 0.3984 | E12: =3.765*D12^2-8.6392*D12+5.3118 -> 2.467533158 | F12: =E12*D12/(1+(E12-1)*D12) -> 0.6203614517 | G12: =($J$2/$J$1)*C12+($F$3/$J$1)*$F$7 -> 0.3984 | H12: =3.765*G12^2-8.6392*G12+5.3118 -> 2.467533158 | I12: =H12*G12/(1+(H12-1)*G12) -> 0.6203614517 | J12: =-A12 -> 0 | T12: 0.5 | U12: 1.93345 | V12: 0.6591044674
A13: 0.2 | B13: 0.5858890495 | C13: 0.5026912617 | D13: 0.471778099 | E13: =3.765*D13^2-8.6392*D13+5.3118 -> 2.074007921 | F13: =E13*D13/(1+(E13-1)*D13) -> 0.6494164668 | G13: 0.3659407764 | H13: =3.765*G13^2-8.6392*G13+5.3118 -> 2.654545579 | I13: =H13*G13/(1+(H13-1)*G13) -> 0.6050621162 | J13: -0.2 | P13: 0.4 | Q13: =H3 -> 0.5492 | T13: 0.55 | U13: 1.6991525 | V13: 0.6749808668
A14: 0.4 | B14: 0.6174141411 | C14: 0.4367011501 | D14: 0.5348282822 | E14: 1.768256967 | F14: 0.6702980504 | G14: 0.3198851777 | H14: 2.933507347 | I14: 0.579787038 | J14: -0.4 | P14: 0.4 | Q14: 0.4 | T14: 0.6 | U14: 1.48368 | V14: 0.6899724696
A15: 0.6 | B15: 0.6432130963 | C15: 0.3468037853 | D15: 0.5864261925 | E15: 1.54031407 | F15: 0.685938072 | G15: 0.2571443085 | H15: 3.339232721 | I15: 0.5361559549 | J15: -0.6 | P15: 0.4 | Q15: 0 | T15: 0.65 | U15: 1.2870325 | V15: 0.7050324312
A16: 0.8 | B16: 0.6639719143 | C16: 0.2337785194 | D16: 0.6279438285 | E16: 1.371457823 | F16: 0.6983135865 | G16: 0.1782620917 | H16: 3.891399948 | I16: 0.4577515731 | J16: -0.8 | T16: 0.7 | U16: =3.765*T16^2-8.6392*T16+5.3118 -> 1.10921 | V16: =U16*T16/(1+(U16-1)*T16) -> 0.7213053685
A17: 1 | B17: 0.6807221829 | C17: 0.1137822345 | D17: 0.6614443659 | E17: 1.244669898 | F17: 0.708602787 | G17: 0.09451468447 | H17: 4.528901579 | I17: 0.3209877053 | J17: -1 | T17: 0.725 | U17: =3.765*T17^2-8.6392*T17+5.3118 -> 1.027358125 | V17: =U17*T17/(1+(U17-1)*T17) -> 0.7303484418
A18: 1.2 | B18: 0.6944393455 | C18: 0.02406410966 | D18: 0.6888786911 | E18: 1.147134461 | F18: 0.7175111391 | G18: 0.03189890987 | H18: 5.040049978 | I18: 0.1424182108 | J18: -1.2 | T18: 0.75 | U18: 0.9502125 | V18: 0.7403027421
A19: 1.4 | B19: 0.7059232841 | C19: -0.01421422165 | D19: 0.7118465681 | E19: 1.069836774 | F19: 0.725493146 | G19: 0.005183824474 | H19: 5.267117077 | I19: 0.02671292097 | J19: -1.4 | T19: 0.775 | U19: 0.877773125 | V19: 0.7514565123
A20: 1.6 | B20: 0.7157973505 | C20: -0.02519147599 | D20: 0.7315947009 | E20: 1.006551046 | F20: 0.7328749539 | G20: -0.002477384283 | H20: 5.333225726 | I20: -0.01335582525 | J20: -1.6 | T20: 0.8 | U20: 0.81004 | V20: 0.764159843
A21: 1.8 | B21: 0.724545003 | C21: -0.02818132132 | D21: 0.749090006 | E21: 0.9529380467 | F21: 0.7399212849 | G21: -0.004564047172 | H21: 5.351308143 | I21: -0.02491849351 | J21: -1.8 | N21: =2.9*250 -> 725 | T21: 0.825 | U21: 0.747013125 | V21: 0.7788409778
A22: 2 | B22: 0.7325526906 | C22: -0.02899215145 | D22: 0.7651053811 | E22: 0.905880801 | F22: 0.7468777694 | G22: -0.005129939035 | H22: 5.35621765 | I22: -0.02810513923 | J22: -2 | T22: 0.85 | U22: 0.6886925 | V22: 0.7960262168
T23: 0.875 | U23: 0.635078125 | V23: 0.8163637146
T24: 0.9 | U24: 0.58617 | V24: 0.8406509092
T25: 0.925 | U25: 0.541968125 | V25: 0.8698640809
T26: 0.95 | U26: 0.5024725 | V26: 0.9051861066
T27: 0.975 | U27: 0.467683125 | V27: 0.9480239806
T28: 0.99 | U28: 0.4490685 | V28: 0.9780015661
T29: 1 | V29: 1
A48: 0 | B48: 0 | C48: 0.4 | D48: 0
A49: 1 | B49: 0 | C49: 0.4 | D49: -1.5

Sheet EtherIPA気液平衡
AC1: 25 0.425222 0.574778 | AG1: 25 0.588888 0.411112
A2: COCOC Diisopropyl ether(1)/Isopropanol(2) | Y2: 0 | Z2: 0 | AC2: 26 0.408175 0.591825 | AG2: 26 0.577000 0.423000
A3: DECHEMA/Mod UNIFAC/Antoine | Y3: 1 | Z3: 1 | AC3: 27 0.374389 0.625611 | AG3: 27 0.553692 0.446308
A4: x | B4: y | E4: α | F4: 相間α | G4: y calc | AC4: 28 0.305668 0.694332 | AG4: 28 0.507444 0.492556
A5: 0 | B5: 0 | AC5: 29 0.162002 0.837998 | AG5: 29 0.413151 0.586849
A6: 0.02 | B6: 0.09793321596 | E6: =B6*(1-A6)/A6/(1-B6) -> 5.319703227 | F6: =3.765*A6^2-8.6392*A6+5.3118 -> 5.140522 | G6: =F6*A6/(1+(F6-1)*A6) -> 0.09494777313 | AC6: 30 0.0267268 0.97327 | AG6: 30 0.214869 0.785131
A7: 0.061 | B7: 0.237 | E7: =B7*(1-A7)/A7/(1-B7) -> 4.781449412 | F7: =3.765*A7^2-8.6392*A7+5.3118 -> 4.798818365 | G7: =F7*A7/(1+(F7-1)*A7) -> 0.2376563163
A8: 0.116781158 | B8: 0.3614802205 | E8: 4.281596449 | F8: 4.354250683 | G8: 0.3653729864
A9: 0.1949910555 | B9: 0.4740044313 | E9: 3.720371701 | F9: 3.770384265 | G9: 0.4773348493
A10: 0.2604765818 | B10: 0.5350306901 | E10: 3.266913634 | F10: 3.316938622 | G10: 0.5388090974
A11: 0.3161094225 | B11: 0.5733955091 | E11: 2.907890463 | F11: 2.957085731 | G11: 0.5774940793
A12: 0.3639575972 | B12: 0.6000134584 | E12: 2.621506226 | F12: 2.666228751 | G12: 0.6040662931
A13: 0.4055482166 | B13: 0.6198204899 | E13: 2.389743894 | F13: 2.427414972 | G13: 0.623499141
A14: 0.442033478 | B14: 0.6353441325 | E14: 2.199271251 | F14: 2.228641265 | G14: 0.6384120826
A15: 0.4742990654 | B15: 0.6480023224 | E15: 2.040437255 | F15: 2.061208421 | G15: 0.650309062
A16: 0.5030369961 | B16: 0.6586480661 | E16: 1.906229498 | F16: 1.918681799 | G16: 0.6601104643
A17: 0.5287958115 | B17: 0.6678236499 | E17: 1.791489313 | F17: 1.796215389 | G17: 0.6684078378
A18: 0.5520159283 | B18: 0.6758896172 | E18: 1.692364062 | F18: 1.69010076 | G18: 0.6755963859
A19: 0.5730550285 | B19: 0.6830947393 | E19: 1.605931686 | F19: 1.597459125 | G19: 0.6819485245
A20: 0.5922066153 | B20: 0.689616119 | E20: 1.529942704 | F20: 1.516026771 | G20: 0.6876569296
A21: 0.6097137901 | B21: 0.6955627888 | E21: 1.462499728 | F21: 1.444002785 | G21: 0.6928608489
A22: 0.6257796258 | B22: 0.7010729332 | E22: 1.40250355 | F22: 1.379939184 | G22: 0.6976627793
A23: 0.6405750799 | B23: 0.7061998571 | E23: 1.348695064 | F23: 1.32266044 | G23: 0.7021393687
A24: 0.6542451018 | B24: 0.7110010681 | E24: 1.300175197 | F24: 1.271203716 | G24: 0.7063487334
A25: 0.6669133975 | B25: 0.7155220009 | E25: 1.256209375 | F25: 1.224773928 | G25: 0.7103354827
A26: 0.6786861835 | B26: 0.7197990706 | E26: 1.216191889 | F26: 1.182709556 | G26: 0.7141342387
A27: 0.6896551724 | B27: 0.7238618447 | E27: 1.179619056 | F27: 1.144456361 | G27: 0.7177721442
A28: 0.7567567568 | B28: 0.7511150898 | C28: 共沸点0.745 | E28: 0.9700461557 | F28: 0.9301701972 | G28: 0.7431856123
A29: 0.8 | B29: 0.7721152819 | E29: 0.8470459191 | F29: 0.81004 | G29: 0.764159843
A30: 0.8301886792 | B30: 0.7893147344 | E30: 0.7663124457 | F30: 0.7345218227 | G30: 0.7821823212
A31: 0.8524590164 | B31: 0.8038686871 | E31: 0.7093773902 | F31: 0.6832102661 | G31: 0.797875146
A32: 0.8695652174 | B32: 0.8160461703 | E32: 0.6654220014 | F32: 0.6463330813 | G32: 0.8116366084
A33: 0.8831168831 | B33: 0.8274200983 | E33: 0.6345552552 | F33: 0.6186829145 | G33: 0.8237728063
A34: 0.8941176471 | B34: 0.8371375767 | E34: 0.6087021859 | F34: 0.5972543945 | G34: 0.8345324642
A35: 0.9032258065 | B35: 0.8458015288 | E35: 0.5876944929 | F35: 0.5802020812 | G35: 0.8441206865
A36: 0.9108910891 | B36: 0.8535784654 | E36: 0.5702866139 | F36: 0.5663352024 | G36: 0.852707334
A37: 0.9174311927 | B37: 0.8606047202 | E37: 0.5556459653 | F37: 0.554853615 | G37: 0.8604334412
A38: 0.9302325581 | B38: 0.8755261468 | E38: 0.5275361798 | F38: 0.5333121687 | G38: 0.8767080393
A39: 0.9395973154 | B39: 0.8875580565 | E39: 0.5074378994 | F39: 0.5183352011 | G39: 0.8896611629
A40: 0.9467455621 | B40: 0.8974692825 | E40: 0.492366077 | F40: 0.5073474948 | G40: 0.9001947303
A41: 0.9523809524 | B41: 0.9057761818 | E41: 0.4806513891 | F41: 0.4989564626 | G41: 0.9089180957
A42: 0.956937799 | B42: 0.912839403 | E42: 0.4712883406 | F42: 0.4923462329 | G42: 0.9162551122
A43: 0.96069869 | B43: 0.9189188014 | E43: 0.4636356322 | F43: 0.4870084056 | G43: 0.9225085526
A44: 0.9638554217 | B44: 0.9242064739 | E44: 0.4572652122 | F44: 0.4826102773 | G44: 0.9278999058
A45: 0.9665427509 | B45: 0.9288475397 | E45: 0.451880577 | F45: 0.4789252747 | G45: 0.9325946564
A46: 0.9688581315 | B46: 0.9329536908 | E46: 0.4472699174 | F46: 0.4757939177 | G46: 0.9367187833
A47: 0.9708737864 | B47: 0.9366122997 | E47: 0.4432779369 | F47: 0.4731007824 | G47: 0.9403698005
A48: 1 | B48: 1
